bitfinex/quotes_BTCUSD_20240607
["timestamp","ask_amount","ask_price","bid_price","bid_amount"]
[1717772798953,1.77696295,71305.0,71304.0,0.00063868]
[1717772799511,1.78415133,71305.0,71304.0,0.00063868]
[1717772800443,1.63164201,71305.0,71304.0,0.00063868]
[1717772800640,1.63903346,71305.0,71304.0,1e-08]
[1717772800843,1.63164201,71305.0,71304.0,1e-08]
[1717772801072,1.63903346,71305.0,71304.0,1e-08]
[1717772801204,1.63164201,71305.0,71304.0,1e-08]
[1717772801616,1.63903346,71305.0,71304.0,1e-08]
[1717772802045,1.63164201,71305.0,71304.0,1e-08]
[1717772802923,1.63903346,71305.0,71304.0,1e-08]
[1717772805420,1.63164201,71305.0,71304.0,1e-08]
[1717772806231,1.54565363,71305.0,71304.0,1e-08]
[1717772806447,1.60180763,71305.0,71304.0,1e-08]
[1717772807063,1.32132263,71305.0,71304.0,0.2084796]
[1717772807284,1.75250763,71305.0,71304.0,1e-08]
[1717772809531,1.8976255,71305.0,71304.0,1e-08]
[1717772810081,1.75250763,71305.0,71304.0,0.2084796]
[1717772810341,1.47202263,71305.0,71304.0,0.19587105]
[1717772811164,1.47202263,71305.0,71304.0,1e-08]
[1717772811585,1.47202263,71305.0,71304.0,0.01245434]
[1717772811983,1.53948054,71305.0,71304.0,0.00830114]
[1717772812190,1.53948054,71305.0,71304.0,0.00094601]
[1717772812403,1.54687199,71305.0,71304.0,0.00094601]
[1717772812595,1.54773199,71305.0,71304.0,0.00094601]
[1717772813113,0.420745,71302.0,71301.0,0.00096896]
[1717772813314,0.58816393,71302.0,71301.0,0.00096896]
[1717772813518,0.68816393,71302.0,71301.0,0.00096896]
[1717772814471,0.69416393,71302.0,71301.0,0.00096896]
[1717772815272,0.69416393,71302.0,71301.0,0.00196896]
[1717772815273,0.70116393,71302.0,71301.0,0.00196896]
[1717772815999,0.276248,71302.0,71301.0,0.21044855]
[1717772816202,0.276248,71302.0,71301.0,0.45885881]
[1717772827175,0.176248,71302.0,71301.0,0.45885881]
[1717772828102,0.176248,71302.0,71301.0,0.46885881]
[1717772828324,0.176248,71302.0,71301.0,0.56167043]
[1717772828522,0.036,71302.0,71301.0,0.56167043]
[1717772829162,0.036,71302.0,71301.0,0.55167043]
[1717772829339,0.036,71302.0,71301.0,0.56167043]
[1717772832331,0.036,71302.0,71301.0,0.55167043]
[1717772832851,0.036,71302.0,71301.0,0.53906188]
[1717772833107,0.036,71302.0,71301.0,0.29896188]
[1717772833309,0.036,71302.0,71301.0,0.20615026]
[1717772833517,0.3367,71302.0,71301.0,0.20615026]
[1717772833686,0.5869475,71302.0,71301.0,0.21875881]
[1717772834111,0.5764955,71302.0,71301.0,0.21875881]
[1717772836089,0.5764955,71302.0,71301.0,0.22565919]
[1717772839613,0.5764955,71302.0,71301.0,0.21305064]
[1717772839816,0.72091443,71302.0,71301.0,0.0171796]
[1717772840008,1.10141143,71302.0,71301.0,0.0171796]
[1717772840164,1.18361143,71302.0,71301.0,0.00196896]
[1717772840373,1.28545399,71302.0,71301.0,0.00196896]
[1717772840570,1.36753188,71302.0,71301.0,0.00196896]
[1717772841023,1.36753449,71302.0,71301.0,0.00196896]
[1717772841426,1.37492594,71302.0,71301.0,0.00196896]
[1717772842902,1.4589903,71302.0,71301.0,0.00196896]
[1717772843099,0.140266,71293.0,71292.0,0.009293]
[1717772843343,0.4135135,71293.0,71292.0,0.009293]
[1717772843526,0.4135135,71293.0,71292.0,0.23306519]
[1717772843731,0.4135135,71293.0,71292.0,0.21777259]
[1717772843925,0.4135135,71293.0,71292.0,0.23306519]
[1717772844335,0.4145135,71293.0,71292.0,0.23906519]
[1717772845116,0.4145135,71293.0,71292.0,0.22645664]
[1717772845540,0.4145135,71293.0,71292.0,0.0305856]
[1717772845791,0.4145135,71293.0,71292.0,0.22645664]
[1717772845994,0.4145135,71293.0,71292.0,0.0305856]
[1717772846131,0.4145135,71293.0,71292.0,0.0335856]
[1717772847545,0.4145135,71293.0,71292.0,0.1133856]
[1717772847754,0.164266,71293.0,71292.0,0.2684856]
[1717772847957,0.224666,71293.0,71292.0,0.46435664]
[1717772848399,0.224666,71293.0,71292.0,0.2684856]
[1717772848538,0.224666,71293.0,71292.0,0.46435664]
[1717772848539,0.39280374,71293.0,71292.0,0.46435664]
[1717772848962,0.39280374,71293.0,71292.0,0.32186519]
[1717772849884,0.39280374,71293.0,71292.0,0.1133856]
[1717772850686,0.39280374,71293.0,71292.0,0.32186519]
[1717772851088,0.39280374,71293.0,71292.0,0.24206519]
[1717772851706,0.39280374,71293.0,71292.0,0.0335856]
[1717772852168,0.224666,71293.0,71292.0,0.0335856]
[1717772852934,0.224666,71293.0,71292.0,0.22945664]
[1717772853630,0.224666,71293.0,71292.0,0.24206519]
[1717772855231,0.164266,71293.0,71292.0,0.24206519]
[1717772855603,0.24174972,71293.0,71292.0,0.24206519]
[1717772856851,0.24174972,71293.0,71292.0,0.22945664]
[1717772857152,0.24174972,71293.0,71292.0,0.24206519]
[1717772858119,0.18134972,71293.0,71292.0,0.24206519]
[1717772858359,0.24174972,71293.0,71292.0,0.24206519]
[1717772860069,0.24174972,71293.0,71292.0,0.0335856]
[1717772860834,0.66670065,71293.0,71292.0,0.0335856]
[1717772860980,0.90060065,71293.0,71292.0,0.0335856]
[1717772861180,0.90060065,71293.0,71292.0,0.018293]
[1717772862279,0.84020065,71293.0,71292.0,0.018293]
[1717772862503,0.89960065,71293.0,71292.0,0.012293]
[1717772862701,1.03907195,71293.0,71292.0,0.015293]
[1717772862902,0.98767195,71293.0,71292.0,0.016293]
[1717772863107,1.04807195,71293.0,71292.0,0.016293]
[1717772863327,0.67370065,71293.0,71292.0,0.01290155]
[1717772863548,0.67370065,71293.0,71292.0,0.21877259]
[1717772863867,0.68570065,71293.0,71292.0,0.21957259]
[1717772866711,0.68570065,71293.0,71292.0,0.20696404]
[1717772866923,0.68570065,71293.0,71292.0,0.21957259]
[1717772867344,0.74113857,71293.0,71292.0,0.011093]
[1717772867970,0.74113857,71293.0,71292.0,0.20696404]
[1717772868422,0.68570065,71293.0,71292.0,0.011093]
[1717772869079,0.03708372,71293.0,71292.0,0.56678421]
[1717772869311,0.02,71293.0,71292.0,0.56678421]
[1717772869521,0.02,71293.0,71292.0,0.72033608]
[1717772869951,0.008,71293.0,71292.0,0.71933608]
[1717772870393,0.008,71293.0,71292.0,0.72533608]
[1717772870394,0.001,71293.0,71292.0,0.72533608]
[1717772870613,0.001,71293.0,71292.0,0.71533608]
[1717772871122,0.001,71293.0,71292.0,0.72133608]
[1717772871338,0.001,71293.0,71292.0,0.71533608]
[1717772871776,0.001,71293.0,71292.0,0.72133608]
[1717772871991,0.0604,71294.0,71293.0,0.30129121]
[1717772872206,0.0604,71294.0,71293.0,0.34143094]
[1717772872438,0.223664,71294.0,71293.0,0.36361389]
[1717772872646,0.223664,71294.0,71293.0,0.0095744]
[1717772872903,0.99404655,71294.0,71293.0,0.0095744]
[1717772873119,1.09404655,71294.0,71293.0,0.0095744]
[1717772873340,0.140266,71293.0,71292.0,0.022093]
[1717772873569,0.40768493,71293.0,71292.0,0.009093]
[1717772873814,0.46808493,71293.0,71292.0,0.014093]
[1717772874072,0.83911693,71293.0,71292.0,0.014093]
[1717772874286,0.83911693,71293.0,71292.0,0.009093]
[1717772874504,0.55858493,71293.0,71292.0,0.009093]
[1717772875751,0.55858493,71293.0,71292.0,0.21757259]
[1717772875752,0.414166,71293.0,71292.0,0.21757259]
[1717772875917,0.414166,71293.0,71292.0,0.45217259]
[1717772876131,0.275266,71293.0,71292.0,0.46514733]
[1717772877646,0.282266,71293.0,71292.0,0.47013891]
[1717772878626,0.282266,71293.0,71292.0,0.56295053]
[1717772880152,0.282266,71293.0,71292.0,0.23553891]
[1717772880364,0.282266,71293.0,71292.0,0.32835053]
[1717772881421,0.562798,71293.0,71292.0,0.31574198]
[1717772881645,0.79870308,71293.0,71292.0,0.02705932]
[1717772882285,1.14604038,71293.0,71292.0,0.02705932]
[1717772882490,1.20912305,71293.0,71292.0,0.02705932]
[1717772882695,1.13864893,71293.0,71292.0,0.011093]
[1717772882907,1.14604038,71293.0,71292.0,0.011093]
[1717772883080,1.13864893,71293.0,71292.0,0.011093]
[1717772883321,0.85811693,71293.0,71292.0,0.011093]
[1717772883536,0.70721693,71293.0,71292.0,0.011093]
[1717772883976,0.77030646,71293.0,71292.0,0.011093]
[1717772884206,0.08208953,71293.0,71292.0,0.31238421]
[1717772884454,0.119,71293.0,71292.0,0.55418421]
[1717772884674,0.119,71293.0,71292.0,0.56754245]
[1717772885112,0.259266,71293.0,71292.0,0.56754245]
[1717772886399,0.259266,71293.0,71292.0,0.5549339]
[1717772886597,0.259266,71293.0,71292.0,0.56754245]
[1717772888157,0.019,71293.0,71292.0,0.57754245]
[1717772888364,0.019,71293.0,71292.0,0.56754245]
[1717772888581,0.019,71293.0,71292.0,0.71311039]
[1717772888789,0.019,71293.0,71292.0,0.72311039]
[1717772888991,0.019,71293.0,71292.0,0.71311039]
[1717772889407,0.007,71293.0,71292.0,0.72211039]
[1717772889611,0.00086,71294.0,71293.0,0.56039121]
[1717772889810,0.00086,71294.0,71293.0,0.70595915]
[1717772890151,0.00086,71294.0,71293.0,0.71928123]
[1717772891782,0.00586,71294.0,71293.0,0.71928123]
[1717772891983,0.00086,71294.0,71293.0,0.71928123]
[1717772892393,0.00086,71294.0,71293.0,0.72828123]
[1717772893054,0.00086,71294.0,71293.0,0.58271329]
[1717772893257,0.00086,71294.0,71293.0,0.72826715]
[1717772894653,0.00086,71294.0,71293.0,0.71826715]
[1717772894855,0.00086,71294.0,71293.0,0.72826715]
[1717772895059,0.00086,71294.0,71293.0,0.72826714]
[1717772895994,0.00086,71294.0,71293.0,0.72806714]
[1717772898137,0.00086,71294.0,71293.0,0.86833314]
[1717772899622,0.00086,71294.0,71293.0,1.21275207]
[1717772899840,0.00086,71302.0,71301.0,0.45134121]
[1717772900077,0.00086,71302.0,71301.0,0.98631399]
[1717772900310,0.00086,71302.0,71301.0,0.99954116]
[1717772900566,0.00086,71302.0,71301.0,1.19954116]
[1717772900779,0.00086,71302.0,71301.0,0.99954116]
[1717772901175,0.00186,71302.0,71301.0,1.00654116]
[1717772901634,0.00186,71302.0,71301.0,1.20654116]
[1717772902265,0.00186,71302.0,71301.0,1.00654116]
[1717772902767,0.00186,71302.0,71301.0,1.20654116]
[1717772903206,0.00186,71302.0,71301.0,1.21154116]
[1717772904043,0.00086,71305.0,71304.0,0.73182421]
[1717772904249,0.00086,71305.0,71304.0,1.27069699]
[1717772904470,0.00086,71305.0,71304.0,1.47069699]
[1717772904675,0.00086,71305.0,71304.0,1.48391292]
[1717772905300,0.00086,71305.0,71304.0,1.76440192]
[1717772905513,0.00086,71305.0,71304.0,1.76640192]
[1717772905729,0.156131,71327.0,71304.0,1.76640192]
[1717772905730,0.017088,71326.0,71309.0,0.92179421]
[1717772905941,0.140186,71334.0,71309.0,1.73893599]
[1717772906120,0.221024,71335.0,71309.0,1.75211168]
[1717772906340,0.056124,71335.0,71309.0,1.90301168]
[1717772906546,0.004,71339.0,71309.0,1.90301168]
[1717772906547,0.004,71339.0,71309.0,2.15061168]
[1717772906750,0.017152,71332.0,71309.0,2.15061168]
[1717772906988,0.182052,71332.0,71309.0,2.15061168]
[1717772907200,0.182052,71332.0,71309.0,2.17157936]
[1717772907403,0.182052,71332.0,71309.0,2.15061168]
[1717772907404,0.017152,71332.0,71309.0,2.15061168]
[1717772908614,0.017152,71332.0,71309.0,2.15561168]
[1717772908818,0.017152,71332.0,71309.0,2.15061168]
[1717772909033,0.017152,71332.0,71309.0,2.15661168]
[1717772909277,0.017152,71332.0,71309.0,2.16161168]
[1717772910029,0.017152,71332.0,71309.0,2.1615473]
[1717772911944,0.00386,71310.0,71309.0,2.1615473]
[1717772912434,0.00386,71310.0,71309.0,2.4420163]
[1717772912649,0.00086,71336.0,71335.0,0.31109121]
[1717772912862,0.00086,71336.0,71335.0,0.45127421]
[1717772913278,0.00086,71336.0,71335.0,0.60992214]
[1717772913694,0.00086,71336.0,71335.0,0.98124107]
[1717772915854,0.00086,71336.0,71335.0,0.98224107]
[1717772916521,0.00086,71336.0,71335.0,0.98124107]
[1717772917142,0.00086,71336.0,71335.0,0.98123979]
[1717772918820,0.00086,71336.0,71335.0,0.97123979]
[1717772919028,0.00086,71336.0,71335.0,0.45973786]
[1717772921742,0.00086,71336.0,71335.0,0.35451769]
[1717772921965,0.23556,71336.0,71335.0,0.15864665]
[1717772922185,0.375741,71336.0,71335.0,0.15864665]
[1717772922403,0.398741,71336.0,71335.0,0.0131873]
[1717772922622,0.398741,71336.0,71335.0,0.30186996]
[1717772922836,0.398741,71336.0,71335.0,0.31427851]
[1717772923301,0.25856,71336.0,71335.0,0.31427851]
[1717772923519,0.00086,71336.0,71335.0,0.35570636]
[1717772923725,0.00486,71336.0,71335.0,0.35570636]
[1717772923941,0.00486,71336.0,71335.0,0.50118569]
[1717772924666,0.00086,71336.0,71335.0,0.50118569]
[1717772924869,0.00086,71336.0,71335.0,0.78578762]
[1717772925698,0.00086,71336.0,71335.0,0.86678762]
[1717772926351,0.00286,71336.0,71335.0,0.86678762]
[1717772926529,0.00086,71336.0,71335.0,0.86978762]
[1717772927360,0.00086,71336.0,71335.0,0.87278762]
[1717772928941,0.00086,71336.0,71335.0,1.07278762]
[1717772929124,0.00086,71336.0,71335.0,1.23628762]
[1717772929352,0.00086,71336.0,71335.0,1.25447444]
[1717772930167,0.00086,71336.0,71335.0,1.27543974]
[1717772930396,0.00086,71336.0,71335.0,1.27544686]
[1717772930860,0.00086,71336.0,71335.0,1.25448156]
[1717772931088,0.00086,71336.0,71335.0,1.27544841]
[1717772931304,0.00086,71336.0,71335.0,1.25448156]
[1717772934437,0.00086,71336.0,71335.0,1.24448156]
[1717772934667,0.00086,71336.0,71335.0,1.25448156]
[1717772935221,0.00086,71336.0,71335.0,1.24448156]
[1717772935434,0.00086,71336.0,71335.0,0.99998156]
[1717772935647,0.00086,71336.0,71335.0,1.00998156]
[1717772936284,0.00086,71336.0,71335.0,0.99998156]
[1717772937788,0.00086,71336.0,71335.0,0.68395178]
[1717772937997,0.15296,71336.0,71335.0,0.68395178]
[1717772938454,0.293141,71336.0,71335.0,0.45334929]
[1717772938692,0.293141,71336.0,71335.0,0.46575784]
[1717772938901,0.293141,71336.0,71335.0,0.32027851]
[1717772939114,0.293141,71336.0,71335.0,0.46276414]
[1717772939372,0.293141,71336.0,71335.0,0.45976414]
[1717772939796,0.293141,71336.0,71335.0,0.44735559]
[1717772940004,0.293141,71336.0,71335.0,0.45035559]
[1717772940220,0.294141,71336.0,71335.0,0.46276414]
[1717772940640,0.294141,71336.0,71335.0,0.4627661]
[1717772940886,0.294141,71336.0,71335.0,0.35754593]
[1717772941084,0.294141,71336.0,71335.0,0.16167489]
[1717772941362,0.294141,71336.0,71335.0,0.35454593]
[1717772941363,0.374041,71336.0,71335.0,0.35454593]
[1717772941595,0.397041,71336.0,71335.0,0.15867489]
[1717772942362,0.396041,71336.0,71335.0,0.15868214]
[1717772942770,0.396041,71336.0,71335.0,0.16168214]
[1717772942985,0.396041,71336.0,71335.0,0.35755318]
[1717772943197,0.396041,71336.0,71335.0,0.35455318]
[1717772943415,0.396041,71336.0,71335.0,0.15868214]
[1717772943672,0.399041,71336.0,71335.0,0.15868214]
[1717772943873,0.399041,71336.0,71335.0,0.35455318]
[1717772944479,0.399041,71336.0,71335.0,0.20905834]
[1717772944693,0.399041,71336.0,71335.0,0.22146689]
[1717772945082,0.399041,71336.0,71335.0,0.20905834]
[1717772945294,0.399041,71336.0,71335.0,0.22146689]
[1717772945739,0.399041,71336.0,71335.0,0.0131873]
[1717772945951,0.140185,71334.0,71333.0,0.19587104]
[1717772946177,0.163185,71334.0,71333.0,0.19587104]
[1717772946390,0.163185,71334.0,71333.0,0.20737712]
[1717772946598,0.163185,71334.0,71333.0,0.01150608]
[1717772946599,0.315385,71334.0,71333.0,0.01150608]
[1717772946814,0.543885,71334.0,71333.0,0.01150608]
[1717772947116,0.4037,71334.0,71330.0,0.09281162]
[1717772947329,0.42277645,71334.0,71333.0,0.01150608]
[1717772947555,0.140203,71325.0,71324.0,0.28868266]
[1717772947767,0.314103,71325.0,71324.0,0.10250412]
[1717772948012,0.390703,71325.0,71324.0,0.29837516]
[1717772948448,0.390703,71325.0,71324.0,0.10250412]
[1717772948879,0.390703,71325.0,71324.0,0.09281162]
[1717772949284,0.390703,71325.0,71324.0,0.10250412]
[1717772950105,0.398703,71325.0,71324.0,0.10350412]
[1717772950862,0.398703,71325.0,71324.0,0.09381162]
[1717772951644,0.405703,71325.0,71324.0,0.10450412]
[1717772951890,0.84460045,71325.0,71324.0,0.0116925]
[1717772952146,0.84460045,71325.0,71310.0,0.479946]
[1717772952147,0.40759145,71320.0,71310.0,0.479946]
[1717772952343,0.40759145,71320.0,71310.0,0.000946]
[1717772952344,0.0685,71318.0,71310.0,0.000946]
[1717772952562,0.291128,71312.0,71311.0,0.00974119]
[1717772952756,0.359628,71312.0,71311.0,0.00974119]
[1717772952901,0.359628,71312.0,71310.0,0.000946]
[1717772952902,0.14023,71311.0,71310.0,0.000946]
[1717772953149,0.16323,71311.0,71310.0,0.000946]
[1717772953454,0.16323,71311.0,71310.0,0.01069094]
[1717772953659,0.16323,71311.0,71310.0,0.006946]
[1717772953823,0.16323,71311.0,71310.0,0.01669094]
[1717772954022,0.16323,71311.0,71310.0,0.01069094]
[1717772954738,0.16323,71311.0,71310.0,0.000946]
[1717772954955,0.16323,71311.0,71310.0,0.01069094]
[1717772955150,0.16323,71311.0,71310.0,0.01769094]
[1717772955686,0.56723,71311.0,71310.0,0.01069094]
[1717772955852,0.56323,71311.0,71310.0,0.01069094]
[1717772956023,0.56323,71311.0,71310.0,0.000946]
[1717772956391,0.56623,71311.0,71310.0,0.01069094]
[1717772956596,0.56623,71311.0,71310.0,0.000946]
[1717772956799,0.56623,71311.0,71310.0,0.01069094]
[1717772957002,0.56623,71311.0,71310.0,0.000946]
[1717772957207,0.56623,71311.0,71310.0,0.01069094]
[1717772957454,0.56623,71311.0,71310.0,0.000946]
[1717772957638,0.56823,71311.0,71310.0,0.01069094]
[1717772957868,0.56823,71311.0,71310.0,0.000946]
[1717772958084,0.56823,71311.0,71310.0,0.01069094]
[1717772958272,0.56823,71311.0,71310.0,0.000946]
[1717772958482,0.56823,71311.0,71310.0,0.01069094]
[1717772958710,0.56523,71311.0,71310.0,0.000946]
[1717772959149,0.56623,71311.0,71310.0,0.000946]
[1717772959363,0.56823,71311.0,71310.0,0.20656198]
[1717772959602,0.56823,71311.0,71310.0,0.01069094]
[1717772960874,0.56823,71311.0,71310.0,0.20656198]
[1717772962413,0.56823,71311.0,71310.0,0.01069094]
[1717772962949,0.29023,71311.0,71310.0,0.01069094]
[1717772963191,0.44113,71311.0,71310.0,0.000946]
[1717772963363,0.29113,71311.0,71310.0,0.19681704]
[1717772963569,0.44113,71311.0,71310.0,0.2066891]
[1717772963746,0.44113,71311.0,71310.0,1.2066891]
[1717772964930,0.44113,71311.0,71310.0,1.01081806]
[1717772965723,0.54813,71311.0,71310.0,1.01081806]
[1717772965930,1.069591,71311.0,71310.0,1.01081806]
[1717772966142,1.092591,71311.0,71310.0,1.01081806]
[1717772966553,1.089591,71311.0,71310.0,1.01081806]
[1717772966965,1.090591,71311.0,71310.0,1.01081806]
[1717772967165,0.939691,71311.0,71310.0,1.01081806]
[1717772967380,1.090591,71311.0,71310.0,1.01081806]
[1717772967580,0.939691,71311.0,71310.0,1.01081806]
[1717772967790,1.090591,71311.0,71310.0,1.01081806]
[1717772968396,1.100591,71311.0,71310.0,1.01181806]
[1717772968662,1.095591,71311.0,71310.0,1.01181806]
[1717772968847,1.095591,71311.0,71310.0,1.01281806]
[1717772969049,1.104591,71311.0,71310.0,1.01281806]
[1717772971377,0.953691,71311.0,71310.0,1.01281806]
[1717772971607,1.104591,71311.0,71310.0,1.01281806]
[1717772972047,0.953691,71311.0,71310.0,1.01281806]
[1717772972276,1.104591,71311.0,71310.0,1.01281806]
[1717772972516,1.10387608,71311.0,71310.0,1.01281806]
[1717772973583,1.10387608,71311.0,71310.0,1.01266836]
[1717772975887,1.01327608,71311.0,71310.0,1.01266836]
[1717772976252,1.02982855,71311.0,71310.0,1.01266836]
[1717772977902,0.96952855,71311.0,71310.0,1.2085394]
[1717772978113,0.42506755,71311.0,71310.0,1.32135102]
[1717772978327,0.42506755,71311.0,71310.0,1.69870168]
[1717772978533,0.42506755,71311.0,71310.0,1.67870168]
[1717772978740,0.70552855,71311.0,71310.0,1.15821902]
[1717772978973,0.70552855,71311.0,71310.0,1.01266836]
[1717772979097,0.69652855,71311.0,71310.0,1.2075394]
[1717772979321,0.40606755,71311.0,71310.0,1.35208388]
[1717772979868,0.40706755,71311.0,71310.0,1.35208388]
[1717772980475,0.40606755,71311.0,71310.0,1.35208388]
[1717772980674,0.40606755,71311.0,71310.0,1.37208388]
[1717772980876,0.40606755,71311.0,71310.0,1.35208388]
[1717772981749,0.40606755,71311.0,71310.0,1.15621284]
[1717772982123,0.40706755,71311.0,71310.0,1.15621284]
[1717772982328,0.50676755,71311.0,71310.0,1.15621284]
[1717772982742,0.50676755,71311.0,71310.0,1.01066836]
[1717772983359,0.84752855,71311.0,71310.0,1.01066836]
[1717772983536,0.56706755,71311.0,71310.0,1.01066836]
[1717772988021,0.56706755,71311.0,71310.0,1.2065394]
[1717772988227,0.56706755,71311.0,71310.0,1.01066836]
[1717772988434,0.56706755,71311.0,71310.0,1.2065394]
[1717772988435,0.50676755,71311.0,71310.0,1.2065394]
[1717772988673,0.40706755,71311.0,71310.0,1.3660394]
[1717772988890,0.46736755,71311.0,71310.0,1.3660394]
[1717772989098,0.46736755,71311.0,71310.0,1.17016836]
[1717772989311,0.40706755,71311.0,71310.0,1.2065394]
[1717772989522,0.46736755,71311.0,71310.0,1.2065394]
[1717772994049,0.280456,71313.0,71310.0,1.2065394]
[1717772994272,0.16819755,71311.0,71310.0,1.2065394]
[1717772994477,0.22849755,71311.0,71310.0,1.2065394]
[1717772995096,0.22849755,71311.0,71310.0,1.01066836]
[1717772995303,0.22849755,71311.0,71310.0,1.2065394]
[1717772996408,0.32849755,71311.0,71310.0,1.01066836]
[1717772996607,0.32949755,71311.0,71310.0,1.01066836]
[1717772997043,0.32849755,71311.0,71310.0,1.01066836]
[1717772997248,0.04201634,71312.0,71310.0,1.01066836]
[1717772997649,0.140228,71312.0,71311.0,0.19587104]
[1717772997853,0.350528,71312.0,71311.0,0.19587104]
[1717772998115,0.350528,71312.0,71311.0,0.22588758]
[1717772998337,0.3925969,71312.0,71311.0,0.22588758]
[1717772998973,0.350528,71312.0,71311.0,0.22588758]
[1717772999182,0.350528,71312.0,71311.0,0.01001654]
[1717772999399,0.350528,71312.0,71311.0,0.22588758]
[1717772999604,0.350528,71312.0,71311.0,0.20588758]
[1717772999826,0.350528,71312.0,71311.0,0.20688758]
[1717773000101,0.360528,71312.0,71311.0,0.20688758]
[1717773000574,0.465528,71312.0,71311.0,0.20788758]
[1717773001018,0.465528,71312.0,71311.0,0.01201654]
[1717773001247,0.405228,71312.0,71311.0,0.01201654]
[1717773001501,0.465528,71312.0,71311.0,0.01201654]
[1717773001712,0.768985,71312.0,71311.0,0.01201654]
[1717773001923,0.92900951,71312.0,71311.0,0.01201654]
[1717773002140,0.98930951,71312.0,71311.0,0.01201654]
[1717773002361,0.926285,71312.0,71311.0,0.01201654]
[1717773002835,0.98938837,71312.0,71311.0,0.01201654]
[1717773003059,0.926285,71312.0,71311.0,0.01201654]
[1717773003265,0.428228,71312.0,71311.0,0.01201654]
[1717773003482,0.488528,71312.0,71311.0,0.01201654]
[1717773003975,0.4702975,71312.0,71311.0,0.20788758]
[1717773004200,0.5305975,71312.0,71311.0,0.01201654]
[1717773005492,0.488528,71312.0,71311.0,0.01201654]
[1717773005953,0.488528,71312.0,71311.0,0.002]
[1717773005954,0.53059711,71312.0,71311.0,0.002]
[1717773006396,0.53059711,71312.0,71311.0,0.01202351]
[1717773006397,0.488528,71312.0,71311.0,0.01202351]
[1717773006647,0.488528,71312.0,71311.0,0.002]
[1717773007082,0.850285,71312.0,71311.0,0.01202351]
[1717773007514,0.95532586,71312.0,71311.0,0.002]
[1717773008200,0.850285,71312.0,71311.0,0.002]
[1717773008616,1.09974479,71312.0,71311.0,0.002]
[1717773008845,1.38020179,71312.0,71311.0,0.002]
[1717773009288,1.43674484,71312.0,71311.0,0.002]
[1717773009500,1.43760484,71312.0,71311.0,0.002]
[1717773009917,1.38106179,71312.0,71311.0,0.002]
[1717773010142,1.54316718,71312.0,71311.0,0.002]
[1717773010380,1.43802093,71312.0,71311.0,0.002]
[1717773012083,1.37772093,71312.0,71311.0,0.002]
[1717773012297,1.43802093,71312.0,71311.0,0.002]
[1717773013011,1.43802093,71312.0,71310.0,1.0007963]
[1717773013012,0.43200834,71311.0,71310.0,0.8837863]
[1717773013230,1.04362727,71311.0,71310.0,0.85500654]
[1717773013418,1.18619965,71311.0,71310.0,0.86180835]
[1717773013633,3.09242406,71311.0,71310.0,0.86180835]
[1717773013846,2.92707206,71311.0,71310.0,0.86180835]
[1717773014316,2.92707206,71311.0,71310.0,0.85778163]
[1717773014522,2.63756952,71311.0,71310.0,0.85097982]
[1717773014731,2.35710852,71311.0,71310.0,0.85778163]
[1717773014938,1.32934227,71311.0,71310.0,0.85778163]
[1717773015150,1.37307093,71311.0,71310.0,0.85778163]
[1717773015368,1.37307093,71311.0,71310.0,0.85097982]
[1717773015580,1.38707093,71311.0,71310.0,0.85197982]
[1717773015784,1.38707093,71311.0,71310.0,0.85878163]
[1717773016423,1.40107093,71311.0,71310.0,0.85978163]
[1717773017480,1.40107093,71311.0,71310.0,0.84478163]
[1717773018184,1.40825931,71311.0,71310.0,0.75778163]
[1717773018662,1.34077093,71311.0,71310.0,0.75778163]
[1717773018871,1.40107093,71311.0,71310.0,0.75778163]
[1717773021270,1.417714,71311.0,71310.0,0.75778163]
[1717773021471,1.56283187,71311.0,71310.0,0.75778163]
[1717773021673,1.56283225,71311.0,71310.0,0.75778163]
[1717773021880,1.5461888,71311.0,71310.0,0.75778163]
[1717773022294,1.5461888,71311.0,71310.0,0.74078163]
[1717773022743,1.34077093,71311.0,71310.0,0.74078163]
[1717773022948,1.40107093,71311.0,71310.0,0.74078163]
[1717773023222,1.40107093,71311.0,71310.0,0.73397982]
[1717773023411,1.40107093,71311.0,71310.0,0.71797982]
[1717773024622,1.30107093,71311.0,71310.0,0.71797982]
[1717773025437,1.4461888,71311.0,71310.0,0.71019409]
[1717773025862,1.4461888,71311.0,71310.0,0.7061272]
[1717773026283,1.4461888,71311.0,71310.0,0.7020603]
[1717773026699,1.4461888,71311.0,71310.0,0.69799341]
[1717773026918,1.4461888,71311.0,71310.0,0.69392652]
[1717773027367,1.45031776,71311.0,71310.0,0.67337985]
[1717773027577,2.35838333,71311.0,71310.0,0.55892174]
[1717773027792,2.35838333,71311.0,71310.0,0.55485508]
[1717773028005,3.85838333,71311.0,71310.0,0.55485508]
[1717773028263,3.85838333,71311.0,71310.0,0.55078841]
[1717773028473,4.13884433,71311.0,71310.0,0.54672174]
[1717773028887,4.13884433,71311.0,71310.0,0.54265533]
[1717773029314,4.26491128,71311.0,71310.0,0.53858892]
[1717773029576,4.26491128,71311.0,71310.0,0.5345225]
[1717773030000,4.13884433,71311.0,71310.0,0.53045609]
[1717773030438,4.13884433,71311.0,71310.0,0.52638968]
[1717773030619,4.13922242,71311.0,71310.0,0.21513449]
[1717773030865,4.13922242,71311.0,71310.0,0.208338]
[1717773031084,4.13922242,71311.0,71310.0,0.20427158]
[1717773031307,4.13922242,71311.0,71292.0,0.163793]
[1717773031308,0.4,71293.0,71292.0,0.163793]
[1717773031514,0.4,71293.0,71289.0,0.2339]
[1717773031515,0.420804,71292.0,71289.0,0.2339]
[1717773031892,0.693804,71292.0,71289.0,0.2339]
[1717773034111,0.754104,71292.0,71289.0,0.2339]
[1717773034315,0.758104,71292.0,71289.0,0.2339]
[1717773034529,0.764104,71292.0,71289.0,0.2339]
[1717773034957,0.703804,71292.0,71289.0,0.2339]
[1717773035088,0.764104,71292.0,71289.0,0.2339]
[1717773036310,0.764104,71292.0,71289.0,0.42977104]
[1717773036510,0.764104,71292.0,71289.0,0.2339]
[1717773037737,0.703804,71292.0,71289.0,0.2339]
[1717773038021,0.764104,71292.0,71289.0,0.2339]
[1717773038645,0.764104,71292.0,71289.0,0.42977104]
[1717773038842,0.764104,71292.0,71289.0,0.2339]
[1717773039499,0.764104,71292.0,71289.0,0.42977104]
[1717773039838,0.764104,71292.0,71289.0,0.2339]
[1717773040446,0.703804,71292.0,71289.0,0.42977104]
[1717773040562,0.764104,71292.0,71289.0,0.2339]
[1717773040766,0.764104,71292.0,71290.0,0.19587104]
[1717773040970,0.764104,71292.0,71289.0,0.2339]